[Event "DVM U12 2024"]
[Site "Heidelberg"]
[Date "2024.12.28"]
[Round "4"]
[White "Classen, Marnin"]
[Black "Pflugbeil, Julian"]
[Result "1-0"]
[ECO "B07"]
[WhiteElo "1632"]
[BlackElo "1586"]
[Annotator "NA RC"]
[PlyCount "91"]
[EventDate "2024.12.23"]
[EventType "team-tourn"]
[EventRounds "7"]
[EventCountry "GER"]
[SourceTitle "playchess.com"]
[Source "ChessBase"]
[SourceQuality "1"]
[TimeControl "40/5400+30:1800+30"]

1. e4 {[%emt 0:00:01]} d6 {[%emt 0:00:03]} 2. d4 {[%emt 0:00:05]} Nf6 {[%emt 0:00:04]} 3. Bd3 {[%emt 0:00:06]} g6 {[%emt 0:00:04]} 4. c4 {[%emt 0:00:05]} Bg7 {[%emt 0:00:05]} 5. Nf3 {[%emt 0:00:20]} O-O {[%emt 0:00:12]} 6. O-O {[%emt 0:00:05]} Nbd7 {[%emt 0:00:03]} 7. h3 {[%emt 0:00:12]} c5 {[%emt 0:00:05]} 8. d5 {[%emt 0:00:08]} a6 {[%emt 0:00:21]} 9. Nc3 {[%emt 0:00:16]} Rb8 {[%emt 0:00:05]} 10. Rb1 {[%emt 0:00:13]} Ne8 {[%emt 0:01:09]} 11. Qd2 {[%emt 0:00:55]} Nc7 {[%emt 0:00:14]} 12. a4 {[%emt 0:00:12]} e5 {[%emt 0:01:46]} 13. b3 {[%emt 0:01:09]} Ne8 {[%emt 0:00:25]} 14. Qe2 {[%emt 0:00:25]} f5 {[%emt 0:00:13]} 15. Bd2 {[%emt 0:01:25]} f4 {[%emt 0:00:06]} 16. Nh2 {[%emt 0:00:21]} Qf6 {[%emt 0:00:35]} 17. Qd1 {[%emt 0:02:18]} Nb6 {[%emt 0:00:35]} 18. Be2 {[%emt 0:01:03]} Bd7 {[%emt 0:00:41]} 19. Bg4 {[%emt 0:06:10]} Bxg4 {[%emt 0:00:35]} 20. Nxg4 {[%emt 0:00:17]} Qg5 {[%emt 0:00:05]} 21. Nh2 {[%emt 0:00:08]} Rf7 {[%emt 0:01:06]} 22. Nf3 {[%emt 0:07:24]} Qf6 {[%emt 0:00:18]} 23. Rb2 {[%emt 0:03:07]} h5 {[%emt 0:01:27]} 24. Nb1 {[%emt 0:00:30]} g5 {[%emt 0:00:09]} 25. Nh2 {[%emt 0:00:11]} Qg6 {[%emt 0:00:26]} 26. Bc3 {[%emt 0:00:19]} Qxe4 {[%emt 0:00:15]} 27. Qxh5 {[%emt 0:00:32]} Qf5 {[%emt 0:00:27]} 28. Qe2 {[%emt 0:00:38]} Nf6 {[%emt 0:00:25]} 29. Nd2 {[%emt 0:00:14]} e4 {[%emt 0:01:20]} 30. Bxf6 {[%emt 0:01:25]} Bxf6 {[%emt 0:00:48]} 31. Ng4 {[%emt 0:00:21]} Bxb2 {[%emt 0:00:07]} 32. Nh6+ {[%emt 0:00:03]} Kg7 {[%emt 0:00:25]} 33. Nxf5+ {[%emt 0:00:30]} Rxf5 {[%emt 0:00:06]} 34. Nxe4 {[%emt 0:00:11]} Be5 {[%emt 0:00:14]} 35. Qg4 {[%emt 0:00:23]} Kg6 {[%emt 0:00:48]} 36. h4 {[%emt 0:00:22]} Rh8 {[%emt 0:00:28]} 37. Nxg5 {[%emt 0:00:29]} Rxh4 {[%emt 0:01:00]} 38. Qxh4 {[%emt 0:00:26]} Rxg5 {[%emt 0:00:26]} 39. Qh3 {[%emt 0:00:11]} Kg7 {[%emt 0:00:36]} 40. Re1 {[%emt 0:00:28]} Na8 {[%emt 0:00:29]} 41. Qc8 {[%emt 0:30:32]} f3 {[%emt 0:30:29]} 42. g3 {[%emt 0:00:09]} Bd4 {[%emt 0:00:11]} 43. Re7+ {[%emt 0:00:20]} Kh6 {[%emt 0:00:06]} 44. Qf8+ {[%emt 0:00:15]} Kh5 {[%emt 0:00:12]} 45. Rh7+ {[%emt 0:00:11]} Kg6 {[%emt 0:00:25]} 46. Rh6# {[%emt 0:00:10]} 1-0

[Event "DVM U12 2024"]
[Site "Heidelberg"]
[Date "2024.12.28"]
[Round "4"]
[White "Zhao, Yunsheng"]
[Black "Tiuca, Emma"]
[Result "1-0"]
[ECO "C01"]
[WhiteElo "1630"]
[BlackElo "1472"]
[Annotator "NA RC"]
[PlyCount "79"]
[EventDate "2024.12.23"]
[EventType "team-tourn"]
[EventRounds "7"]
[EventCountry "GER"]
[SourceTitle "playchess.com"]
[Source "ChessBase"]
[SourceQuality "1"]
[TimeControl "40/5400+30:1800+30"]

1. e4 {[%emt 0:00:03]} e6 {[%emt 0:00:14]} 2. d4 {[%emt 0:00:04]} d5 {[%emt 0:00:12]} 3. exd5 {[%emt 0:00:07]} exd5 {[%emt 0:00:16]} 4. Bd3 {[%emt 0:00:17]} Bd6 {[%emt 0:00:28]} 5. Nf3 {[%emt 0:00:48]} Nf6 {[%emt 0:00:18]} 6. c3 {[%emt 0:01:09]} c6 {[%emt 0:00:31]} 7. Bg5 {[%emt 0:00:48]} Be6 {[%emt 0:01:21]} 8. Nbd2 {[%emt 0:00:38]} Nbd7 {[%emt 0:01:24]} 9. O-O {[%emt 0:00:35]} O-O {[%emt 0:00:50]} 10. Qc2 {[%emt 0:01:14]} Qc7 {[%emt 0:02:35]} 11. Rfe1 {[%emt 0:02:04]} Rfe8 {[%emt 0:00:57]} 12. Re2 {[%emt 0:09:08]} h6 {[%emt 0:04:29]} 13. Bh4 {[%emt 0:01:07]} Re7 {[%emt 0:00:39]} 14. Rae1 {[%emt 0:01:06]} Rae8 {[%emt 0:02:30]} 15. Bg3 {[%emt 0:01:56]} Bxg3 {[%emt 0:00:29]} 16. hxg3 {[%emt 0:00:28]} b6 {[%emt 0:16:05]} 17. Nh4 {[%emt 0:14:14]} Rd8 {[%emt 0:05:41]} 18. Nf5 {[%emt 0:07:47]} Ree8 {[%emt 0:01:00]} 19. b4 {[%emt 0:05:50]} Nf8 {[%emt 0:10:29]} 20. Nf3 {[%emt 0:09:21]} N8h7 {[%emt 0:14:57]} 21. Ne5 {[%emt 0:01:44]} Ng5 {[%emt 0:05:48]} 22. Nh4 {[%emt 0:04:01]} Ngh7 {[%emt 0:02:53]} 23. a4 {[%emt 0:02:29]} Qb7 {[%emt 0:06:59]} 24. b5 {[%emt 0:04:25]} c5 {[%emt 0:00:35]} 25. Nc6 {[%emt 0:01:11]} Ra8 {[%emt 0:03:25]} 26. Bf5 {[%emt 0:07:14]} Bxf5 {[%emt 0:01:52]} 27. Rxe8+ {[%emt 0:00:19]} Rxe8 {[%emt 0:00:15]} 28. Rxe8+ {[%emt 0:00:25]} Nxe8 {[%emt 0:00:08]} 29. Nxf5 {[%emt 0:00:22]} Nhf6 {[%emt 0:00:45]} 30. Nfe7+ {[%emt 0:00:37]} Kh8 {[%emt 0:00:12]} 31. Qe2 {[%emt 0:04:48]} Nd6 {[%emt 0:01:43]} 32. Qf3 {[%emt 0:01:50]} Nde4 {[%emt 0:00:44]} 33. Nxd5 {[%emt 0:03:16]} Nxd5 {[%emt 0:00:39]} 34. Qxe4 {[%emt 0:00:07]} Nxc3 {[%emt 0:00:11]} 35. Qe8+ {[%emt 0:00:06]} Kh7 {[%emt 0:00:11]} 36. Ne7 {[%emt 0:00:22]} Ne2+ {[%emt 0:02:58]} 37. Kh2 {[%emt 0:01:18]} h5 {[%emt 0:00:46]} 38. Qg8+ {[%emt 0:00:05]} Kh6 {[%emt 0:00:08]} 39. Qh8+ {[%emt 0:00:02]} Kg5 {[%emt 0:00:12]} 40. Qxg7# {[%emt 0:00:33]} 1-0

[Event "DVM U12 2024"]
[Site "Heidelberg"]
[Date "2024.12.28"]
[Round "4"]
[White "Boroshnev, Dmytro"]
[Black "Dilger, Ludwig"]
[Result "1-0"]
[ECO "C84"]
[WhiteElo "1627"]
[BlackElo "1615"]
[Annotator "NA RC"]
[PlyCount "139"]
[EventDate "2024.12.23"]
[EventType "team-tourn"]
[EventRounds "7"]
[EventCountry "GER"]
[SourceTitle "playchess.com"]
[Source "ChessBase"]
[SourceQuality "1"]
[TimeControl "40/5400+30:1800+30"]

1. e4 {[%emt 0:00:02]} e5 {[%emt 0:00:05]} 2. Nf3 {[%emt 0:00:05]} Nc6 {[%emt 0:00:42]} 3. Bb5 {[%emt 0:00:05]} a6 {[%emt 0:00:19]} 4. Ba4 {[%emt 0:00:04]} Nf6 {[%emt 0:00:43]} 5. O-O {[%emt 0:00:08]} Be7 {[%emt 0:00:36]} 6. d3 {[%emt 0:00:08]} b5 {[%emt 0:00:52]} 7. Bb3 {[%emt 0:00:05]} O-O {[%emt 0:01:16]} 8. c3 {[%emt 0:01:10]} d5 {[%emt 0:12:49]} 9. exd5 {[%emt 0:00:00]} Nxd5 {[%emt 0:00:08]} 10. h3 {[%emt 0:00:02]} Nf6 {[%emt 0:03:25]} 11. Qe2 {[%emt 0:01:08]} Bd6 {[%emt 0:00:44]} 12. Bg5 {[%emt 0:00:26]} Re8 {[%emt 0:00:38]} 13. Nbd2 {[%emt 0:00:21]} h6 {[%emt 0:00:10]} 14. Bxf6 {[%emt 0:02:23]} Qxf6 {[%emt 0:00:15]} 15. Qe4 {[%emt 0:00:07]} Bd7 {[%emt 0:01:47]} 16. Bd5 {[%emt 0:03:29]} Bf5 {[%emt 0:05:17]} 17. Qe3 {[%emt 0:01:30]} Bd7 {[%emt 0:00:25]} 18. a4 {[%emt 0:06:03]} Rab8 {[%emt 0:01:52]} 19. Ne4 {[%emt 0:03:47]} Qf4 {[%emt 0:09:20]} 20. Qxf4 {[%emt 0:03:08]} exf4 {[%emt 0:00:08]} 21. axb5 {[%emt 0:05:33]} Rxb5 {[%emt 0:01:54]} 22. Bc4 {[%emt 0:02:25]} Rxb2 {[%emt 0:00:37]} 23. Rxa6 {[%emt 0:00:38]} Bf8 {[%emt 0:07:14]} 24. Rfa1 {[%emt 0:04:40]} Bd6 {[%emt 0:09:36]} 25. Ra8 {[%emt 0:03:58]} Rbb8 {[%emt 0:00:47]} 26. Rxb8 {[%emt 0:01:31]} Rxb8 {[%emt 0:00:07]} 27. Ra6 {[%emt 0:02:56]} Be7 {[%emt 0:06:19]} 28. Bd5 {[%emt 0:02:34]} Rb6 {[%emt 0:00:39]} 29. Ra8+ {[%emt 0:00:27]} Bf8 {[%emt 0:00:16]} 30. Kh2 {[%emt 0:06:58]} Be6 {[%emt 0:00:46]} 31. Bxe6 {[%emt 0:01:06]} fxe6 {[%emt 0:00:09]} 32. Nc5 {[%emt 0:00:12]} Rb8 {[%emt 0:06:31]} 33. Rxb8 {[%emt 0:00:45]} Nxb8 {[%emt 0:00:07]} 34. Nxe6 {[%emt 0:00:06]} Bd6 {[%emt 0:00:17]} 35. Ned4 {[%emt 0:00:36]} Nd7 {[%emt 0:01:03]} 36. Nb3 {[%emt 0:00:14]} Bc5 {[%emt 0:01:04]} 37. Kg1 {[%emt 0:00:39]} Kf7 {[%emt 0:00:14]} 38. Kf1 {[%emt 0:00:05]} Ke6 {[%emt 0:00:44]} 39. Ke2 {[%emt 0:00:05]} Bd6 {[%emt 0:00:35]} 40. d4 {[%emt 0:01:17]} c5 {[%emt 0:00:14]} 41. Kd3 {[%emt 0:30:49]} cxd4 {[%emt 0:31:01]} 42. Nbxd4+ {[%emt 0:00:40]} Kd5 {[%emt 0:00:23]} 43. c4+ {[%emt 0:00:09]} Kc5 {[%emt 0:00:24]} 44. Ne6+ {[%emt 0:00:18]} Kb4 {[%emt 0:01:49]} 45. Nxg7 {[%emt 0:00:58]} Nc5+ {[%emt 0:01:05]} 46. Kd4 {[%emt 0:00:09]} Be7 {[%emt 0:01:14]} 47. Nh5 {[%emt 0:02:17]} Ne6+ {[%emt 0:00:46]} 48. Ke5 {[%emt 0:00:19]} Ng5 {[%emt 0:01:12]} 49. Kxf4 {[%emt 0:00:55]} Nxf3 {[%emt 0:00:09]} 50. Kxf3 {[%emt 0:00:06]} Kxc4 {[%emt 0:00:10]} 51. Ke4 {[%emt 0:00:06]} Bd6 {[%emt 0:00:43]} 52. f4 {[%emt 0:00:15]} Kc5 {[%emt 0:00:09]} 53. Kf5 {[%emt 0:00:10]} Kd5 {[%emt 0:00:13]} 54. Nf6+ {[%emt 0:00:17]} Kc6 {[%emt 0:00:11]} 55. g4 {[%emt 0:00:14]} Kc7 {[%emt 0:00:17]} 56. g5 {[%emt 0:00:15]} hxg5 {[%emt 0:00:13]} 57. fxg5 {[%emt 0:00:07]} Kd8 {[%emt 0:00:13]} 58. Ke6 {[%emt 0:00:18]} Be7 {[%emt 0:01:19]} 59. g6 {[%emt 0:00:12]} Bxf6 {[%emt 0:00:10]} 60. Kxf6 {[%emt 0:00:08]} Kd7 {[%emt 0:00:10]} 61. g7 {[%emt 0:00:15]} Kd6 {[%emt 0:02:30]} 62. g8=Q {[%emt 0:00:12]} Kc5 {[%emt 0:00:07]} 63. Qd8 {[%emt 0:00:10]} Kc4 {[%emt 0:00:11]} 64. Ke5 {[%emt 0:00:07]} Kc3 {[%emt 0:00:12]} 65. Qd4+ {[%emt 0:00:15]} Kb3 {[%emt 0:00:05]} 66. Kd5 {[%emt 0:00:15]} Kc2 {[%emt 0:00:37]} 67. Kc4 {[%emt 0:00:26]} Kc1 {[%emt 0:00:00]} 68. Qf2 {[%emt 0:00:09]} Kb1 {[%emt 0:00:04]} 69. Kb3 {[%emt 0:00:05]} Kc1 {[%emt 0:00:08]} 70. Qc2# {[%emt 0:00:03]} 1-0

[Event "DVM U12 2024"]
[Site "Heidelberg"]
[Date "2024.12.28"]
[Round "4"]
[White "Atar, Semih Akif"]
[Black "Satti, Shahroz"]
[Result "1/2-1/2"]
[ECO "E06"]
[WhiteElo "1624"]
[BlackElo "1525"]
[Annotator "NA RC"]
[PlyCount "51"]
[EventDate "2024.12.23"]
[EventType "team-tourn"]
[EventRounds "7"]
[EventCountry "GER"]
[SourceTitle "playchess.com"]
[Source "ChessBase"]
[SourceQuality "1"]
[TimeControl "40/5400+30:1800+30"]

1. c4 {[%emt 0:00:03]} e6 {[%emt 0:00:09]} 2. g3 {[%emt 0:00:11]} d5 {[%emt 0:00:11]} 3. Bg2 {[%emt 0:00:06]} Nf6 {[%emt 0:00:17]} 4. Nf3 {[%emt 0:00:27]} Be7 {[%emt 0:00:19]} 5. O-O {[%emt 0:00:14]} O-O {[%emt 0:00:10]} 6. cxd5 {[%emt 0:01:15]} exd5 {[%emt 0:00:16]} 7. d4 {[%emt 0:00:42]} Bf5 {[%emt 0:00:34]} 8. Bf4 {[%emt 0:01:26]} Nbd7 {[%emt 0:01:41]} 9. Ne5 {[%emt 0:00:46]} c6 {[%emt 0:02:23]} 10. Nc3 {[%emt 0:02:45]} Nxe5 {[%emt 0:00:43]} 11. Bxe5 {[%emt 0:01:09]} Qd7 {[%emt 0:01:28]} 12. Rc1 {[%emt 0:00:42]} Bh3 {[%emt 0:05:42]} 13. Qd3 {[%emt 0:03:43]} Bf5 {[%emt 0:01:59]} 14. Qd2 {[%emt 0:00:52]} Rfe8 {[%emt 0:06:58]} 15. a3 {[%emt 0:03:09]} a6 {[%emt 0:06:14]} 16. Na4 {[%emt 0:01:55]} Qd8 {[%emt 0:02:32]} 17. Qc3 {[%emt 0:03:10]} Ne4 {[%emt 0:01:41]} 18. Bxe4 {[%emt 0:01:40]} Bxe4 {[%emt 0:01:18]} 19. f3 {[%emt 0:00:17]} Bf5 {[%emt 0:00:11]} 20. Qb3 {[%emt 0:04:35]} Ra7 {[%emt 0:08:50]} 21. Rfe1 {[%emt 0:02:22]} Bg5 {[%emt 0:02:24]} 22. e3 {[%emt 0:08:26]} Be7 {[%emt 0:01:17]} 23. e4 {[%emt 0:07:14]} dxe4 {[%emt 0:00:28]} 24. fxe4 {[%emt 0:00:12]} Bg4 {[%emt 0:02:39]} 25. Rc3 {[%emt 0:11:55]} Be6 {[%emt 0:03:04]} 26. Qc2 {[%emt 0:00:53]} 1/2-1/2

[Event "DVM U12 2024"]
[Site "Heidelberg"]
[Date "2024.12.28"]
[Round "4"]
[White "Svanidze, Alexander"]
[Black "Teng, David"]
[Result "0-1"]
[ECO "B22"]
[WhiteElo "1615"]
[BlackElo "1732"]
[Annotator "NA RC"]
[PlyCount "82"]
[EventDate "2024.12.23"]
[EventType "team-tourn"]
[EventRounds "7"]
[EventCountry "GER"]
[SourceTitle "playchess.com"]
[Source "ChessBase"]
[SourceQuality "1"]
[TimeControl "40/5400+30:1800+30"]

1. e4 {[%emt 0:00:02]} c5 {[%emt 0:00:24]} 2. c3 {[%emt 0:00:06]} Nf6 {[%emt 0:00:21]} 3. e5 {[%emt 0:00:04]} Nd5 {[%emt 0:00:20]} 4. d4 {[%emt 0:00:03]} cxd4 {[%emt 0:00:14]} 5. Nf3 {[%emt 0:00:06]} e6 {[%emt 0:00:55]} 6. cxd4 {[%emt 0:00:29]} d6 {[%emt 0:01:22]} 7. Bc4 {[%emt 0:03:05]} Be7 {[%emt 0:00:54]} 8. O-O {[%emt 0:00:41]} Bd7 {[%emt 0:01:05]} 9. Re1 {[%emt 0:01:15]} Bc6 {[%emt 0:00:31]} 10. Bd2 {[%emt 0:06:10]} Nd7 {[%emt 0:02:39]} 11. Nc3 {[%emt 0:03:36]} Nxc3 {[%emt 0:02:04]} 12. Bxc3 {[%emt 0:00:07]} Qc7 {[%emt 0:00:13]} 13. Bb3 {[%emt 0:01:04]} O-O {[%emt 0:02:55]} 14. Rc1 {[%emt 0:06:51]} Rfd8 {[%emt 0:03:04]} 15. Qe2 {[%emt 0:03:08]} Nb6 {[%emt 0:02:35]} 16. Bd2 {[%emt 0:04:30]} Qd7 {[%emt 0:00:17]} 17. Bf4 {[%emt 0:01:54]} Rac8 {[%emt 0:02:24]} 18. Bg3 {[%emt 0:02:34]} Nd5 {[%emt 0:04:15]} 19. a3 {[%emt 0:07:01]} a6 {[%emt 0:04:15]} 20. Ba2 {[%emt 0:01:16]} a5 {[%emt 0:03:36]} 21. h3 {[%emt 0:03:45]} b5 {[%emt 0:03:54]} 22. b3 {[%emt 0:06:38]} b4 {[%emt 0:01:31]} 23. a4 {[%emt 0:08:22]} Nc3 {[%emt 0:02:21]} 24. Qb2 {[%emt 0:02:00]} Bxf3 {[%emt 0:01:42]} 25. gxf3 {[%emt 0:00:08]} Qb7 {[%emt 0:02:58]} 26. Kg2 {[%emt 0:00:40]} Qd5 {[%emt 0:02:27]} 27. exd6 {[%emt 0:07:45]} Bxd6 {[%emt 0:00:51]} 28. Be5 {[%emt 0:00:23]} Be7 {[%emt 0:03:47]} 29. Bb1 {[%emt 0:03:25]} Bg5 {[%emt 0:01:33]} 30. Rc2 {[%emt 0:02:37]} f6 {[%emt 0:05:54]} 31. Bg3 {[%emt 0:03:04]} Qxd4 {[%emt 0:00:38]} 32. Rxe6 {[%emt 0:02:00]} Re8 {[%emt 0:00:37]} 33. Rd6 {[%emt 0:02:27]} Qc5 {[%emt 0:02:31]} 34. Rd7 {[%emt 0:06:08]} Qf5 {[%emt 0:03:05]} 35. Rd4 {[%emt 0:02:47]} Nxb1 {[%emt 0:05:03]} 36. Qxb1 {[%emt 0:05:06]} Qxc2 {[%emt 0:01:46]} 37. Qf1 {[%emt 0:00:31]} Qc3 {[%emt 0:02:12]} 38. Rd7 {[%emt 0:01:26]} Rcd8 {[%emt 0:03:48]} 39. Rc7 {[%emt 0:00:34]} Qd3 {[%emt 0:00:56]} 40. Qa1 {[%emt 0:01:01]} Rc8 {[%emt 0:01:04]} 41. Rb7 {[%emt 0:30:22]} Rc1 {[%emt 0:30:32]} 0-1

[Event "DVM U12 2024"]
[Site "Heidelberg"]
[Date "2024.12.28"]
[Round "4"]
[White "Rudolph, Simon"]
[Black "Sun, Christopher"]
[Result "1/2-1/2"]
[ECO "D53"]
[WhiteElo "1614"]
[BlackElo "1723"]
[Annotator "NA RC"]
[PlyCount "74"]
[EventDate "2024.12.23"]
[EventType "team-tourn"]
[EventRounds "7"]
[EventCountry "GER"]
[SourceTitle "playchess.com"]
[Source "ChessBase"]
[SourceQuality "1"]
[TimeControl "40/5400+30:1800+30"]

1. d4 {[%emt 0:00:05]} d5 {[%emt 0:00:19]} 2. c4 {[%emt 0:00:04]} e6 {[%emt 0:00:03]} 3. Nc3 {[%emt 0:00:05]} Nf6 {[%emt 0:00:07]} 4. Bg5 {[%emt 0:00:17]} Be7 {[%emt 0:00:05]} 5. Nf3 {[%emt 0:00:13]} O-O {[%emt 0:00:05]} 6. e3 {[%emt 0:00:06]} dxc4 {[%emt 0:00:17]} 7. Bxc4 {[%emt 0:00:14]} b6 {[%emt 0:00:08]} 8. O-O {[%emt 0:00:13]} Bb7 {[%emt 0:00:12]} 9. Qe2 {[%emt 0:00:20]} Nbd7 {[%emt 0:00:06]} 10. Rfd1 {[%emt 0:00:28]} c5 {[%emt 0:02:09]} 11. dxc5 {[%emt 0:00:30]} Bxf3 {[%emt 0:11:56]} 12. Qxf3 {[%emt 0:00:11]} Ne5 {[%emt 0:00:31]} 13. Qe2 {[%emt 0:00:17]} Qc7 {[%emt 0:00:59]} 14. Ba6 {[%emt 0:04:00]} Qxc5 {[%emt 0:00:42]} 15. Rac1 {[%emt 0:00:28]} Qb4 {[%emt 0:02:37]} 16. Bf4 {[%emt 0:01:41]} Ng6 {[%emt 0:00:57]} 17. Bg3 {[%emt 0:06:32]} Rfd8 {[%emt 0:01:09]} 18. Re1 {[%emt 0:11:08]} h6 {[%emt 0:03:48]} 19. Bb7 {[%emt 0:01:32]} Bd6 {[%emt 0:03:01]} 20. Bxd6 {[%emt 0:02:59]} Qxd6 {[%emt 0:00:18]} 21. Bxa8 {[%emt 0:00:26]} Rxa8 {[%emt 0:00:07]} 22. Nb5 {[%emt 0:01:20]} Qe5 {[%emt 0:01:36]} 23. Nd4 {[%emt 0:01:26]} Ne7 {[%emt 0:07:09]} 24. Nc6 {[%emt 0:05:00]} Nxc6 {[%emt 0:00:36]} 25. Rxc6 {[%emt 0:00:10]} Rd8 {[%emt 0:00:45]} 26. Rec1 {[%emt 0:03:05]} Rd7 {[%emt 0:03:59]} 27. Rc8+ {[%emt 0:06:21]} Kh7 {[%emt 0:00:10]} 28. Qc2+ {[%emt 0:00:37]} g6 {[%emt 0:00:22]} 29. Qc3 {[%emt 0:00:37]} Qf5 {[%emt 0:02:35]} 30. e4 {[%emt 0:08:58]} Qg5 {[%emt 0:05:35]} 31. f4 {[%emt 0:06:03]} Qh4 {[%emt 0:04:37]} 32. g3 {[%emt 0:02:54]} Qh5 {[%emt 0:01:49]} 33. Qxf6 {[%emt 0:05:26]} Rd1+ {[%emt 0:00:16]} 34. Rxd1 {[%emt 0:00:07]} Qxd1+ {[%emt 0:00:16]} 35. Kg2 {[%emt 0:01:26]} Qe2+ {[%emt 0:01:31]} 36. Kh3 {[%emt 0:03:58]} Qh5+ {[%emt 0:01:07]} 37. Qh4 {[%emt 0:08:10]} Qd1 {[%emt 0:00:29]} 1/2-1/2

[Event "DVM U12 2024"]
[Site "Heidelberg"]
[Date "2024.12.28"]
[Round "4"]
[White "Sriram, Aumkar"]
[Black "Heins, Simon"]
[Result "0-1"]
[ECO "B24"]
[WhiteElo "1610"]
[BlackElo "1708"]
[Annotator "NA RC"]
[PlyCount "94"]
[EventDate "2024.12.23"]
[EventType "team-tourn"]
[EventRounds "7"]
[EventCountry "GER"]
[SourceTitle "playchess.com"]
[Source "ChessBase"]
[SourceQuality "1"]
[TimeControl "40/5400+30:1800+30"]

1. e4 {[%emt 0:00:01]} c5 {[%emt 0:00:06]} 2. Nf3 {[%emt 0:00:11]} e6 {[%emt 0:00:05]} 3. g3 {[%emt 0:00:13]} Nc6 {[%emt 0:00:17]} 4. Bg2 {[%emt 0:00:08]} g6 {[%emt 0:01:19]} 5. d3 {[%emt 0:01:16]} Bg7 {[%emt 0:00:10]} 6. Nc3 {[%emt 0:01:02]} Nge7 {[%emt 0:00:34]} 7. Bg5 {[%emt 0:00:42]} O-O {[%emt 0:00:59]} 8. O-O {[%emt 0:00:04]} d5 {[%emt 0:00:53]} 9. exd5 {[%emt 0:02:12]} exd5 {[%emt 0:00:12]} 10. Re1 {[%emt 0:00:12]} Be6 {[%emt 0:00:43]} 11. Qd2 {[%emt 0:01:54]} Qd7 {[%emt 0:02:32]} 12. Bxe7 {[%emt 0:03:03]} Nxe7 {[%emt 0:01:39]} 13. Ne5 {[%emt 0:01:42]} Qc7 {[%emt 0:00:53]} 14. f4 {[%emt 0:00:25]} Rad8 {[%emt 0:02:35]} 15. Kh1 {[%emt 0:00:53]} Nc6 {[%emt 0:00:33]} 16. Nf3 {[%emt 0:05:03]} h6 {[%emt 0:08:00]} 17. Na4 {[%emt 0:06:17]} b6 {[%emt 0:00:29]} 18. Nc3 {[%emt 0:00:29]} a6 {[%emt 0:00:42]} 19. a3 {[%emt 0:03:54]} b5 {[%emt 0:01:52]} 20. Rab1 {[%emt 0:04:30]} Rfe8 {[%emt 0:02:45]} 21. b4 {[%emt 0:03:12]} cxb4 {[%emt 0:01:26]} 22. axb4 {[%emt 0:03:29]} Nxb4 {[%emt 0:00:27]} 23. d4 {[%emt 0:02:30]} Nc6 {[%emt 0:01:17]} 24. Ra1 {[%emt 0:00:36]} Qb6 {[%emt 0:00:44]} 25. Ne5 {[%emt 0:00:42]} Qxd4 {[%emt 0:04:50]} 26. Qxd4 {[%emt 0:07:19]} Nxd4 {[%emt 0:00:11]} 27. Rxa6 {[%emt 0:00:12]} b4 {[%emt 0:00:34]} 28. Ne2 {[%emt 0:01:15]} Nxc2 {[%emt 0:00:14]} 29. Rc1 {[%emt 0:00:16]} b3 {[%emt 0:00:30]} 30. Rb6 {[%emt 0:03:03]} Rb8 {[%emt 0:00:09]} 31. Ra6 {[%emt 0:01:32]} Bxe5 {[%emt 0:02:30]} 32. fxe5 {[%emt 0:00:12]} b2 {[%emt 0:00:19]} 33. Rb1 {[%emt 0:00:13]} d4 {[%emt 0:00:10]} 34. Rc6 {[%emt 0:00:25]} Ba2 {[%emt 0:00:20]} 35. Rxc2 {[%emt 0:00:35]} Bxb1 {[%emt 0:00:04]} 36. Rd2 {[%emt 0:00:39]} Ba2 {[%emt 0:00:06]} 37. Rd1 {[%emt 0:00:11]} b1=Q {[%emt 0:00:08]} 38. Rxb1 {[%emt 0:00:10]} Rxb1+ {[%emt 0:00:05]} 39. Ng1 {[%emt 0:00:16]} Rxe5 {[%emt 0:00:07]} 40. h3 {[%emt 0:00:26]} Ree1 {[%emt 0:00:06]} 41. Kh2 {[%emt 0:30:25]} Rxg1 {[%emt 0:30:04]} 42. h4 {[%emt 0:00:31]} d3 {[%emt 0:00:07]} 43. Kh3 {[%emt 0:00:13]} d2 {[%emt 0:00:07]} 44. Kh2 {[%emt 0:00:14]} d1=Q {[%emt 0:00:10]} 45. Kh3 {[%emt 0:00:16]} Be6+ {[%emt 0:00:06]} 46. g4 {[%emt 0:00:30]} Qxg4+ {[%emt 0:00:06]} 47. Kh2 {[%emt 0:00:23]} Qxg2# {[%emt 0:00:38]} 0-1

[Event "DVM U12 2024"]
[Site "Heidelberg"]
[Date "2024.12.28"]
[Round "4"]
[White "Winklmann, Alexander"]
[Black "Ünal, Malik Mehmet"]
[Result "1-0"]
[ECO "C29"]
[WhiteElo "1593"]
[BlackElo "831"]
[Annotator "NA"]
[PlyCount "39"]
[EventDate "2024.12.23"]
[EventType "team-tourn"]
[EventRounds "7"]
[EventCountry "GER"]
[SourceTitle "playchess.com"]
[Source "ChessBase"]
[SourceQuality "1"]
[TimeControl "40/5400+30:1800+30"]

1. e4 {[%emt 0:00:03]} e5 {[%emt 0:00:06]} 2. Nc3 {[%emt 0:00:03]} Nf6 {[%emt 0:00:15]} 3. f4 {[%emt 0:00:06]} exf4 {[%emt 0:00:27]} 4. d4 {[%emt 0:00:15]} Nc6 {[%emt 0:00:59]} 5. Nf3 {[%emt 0:00:20]} d5 {[%emt 0:01:13]} 6. e5 {[%emt 0:00:56]} Ne4 {[%emt 0:00:34]} 7. Bxf4 {[%emt 0:00:24]} Bb4 {[%emt 0:00:32]} 8. Bd2 {[%emt 0:00:43]} Bg4 {[%emt 0:00:32]} 9. a3 {[%emt 0:01:12]} Ba5 {[%emt 0:00:17]} 10. Be2 {[%emt 0:01:14]} O-O {[%emt 0:01:40]} 11. O-O {[%emt 0:04:06]} f6 {[%emt 0:02:53]} 12. exf6 {[%emt 0:05:40]} Rxf6 {[%emt 0:01:23]} 13. Nxe4 {[%emt 0:00:22]} Rf5 {[%emt 0:01:35]} 14. Ng3 {[%emt 0:01:42]} Rf8 {[%emt 0:02:15]} 15. Bxa5 {[%emt 0:00:13]} Nxa5 {[%emt 0:00:11]} 16. Ne5 {[%emt 0:00:14]} Bxe2 {[%emt 0:00:41]} 17. Qxe2 {[%emt 0:00:15]} Re8 {[%emt 0:00:25]} 18. Qg4 {[%emt 0:04:14]} c5 {[%emt 0:01:05]} 19. Rf7 {[%emt 0:00:00]} Re7 {[%emt 0:00:30]} 20. Qxg7# {[%emt 0:00:00]} 1-0